Cogmind - Beta 12 @@@ ROGUE MODE // 2023.05.19 @ 21:13:45 Player: Inkie Result: Destroyed by G-47 Trooper with Particle Gun Performance ------------- Evolutions (2) 1000 Regions Visited (11) 2200 Robots Destroyed (166) 830 Value Destroyed (7334) 7334 Prototype IDs (10) 200 Alien Tech Used (0) 0 Bonus (1075) 1075 TOTAL SCORE: 12639 Bonus ------- High Alert Combat Kills 539 Follower Combat Kills 182 Entered Garrisons 400 Friendly Fire -46 Cogmind --------- Core Integrity 0/550 Matter 300/300 Energy 220/265 System Corruption 1% Temperature Cool (27) Movement Treading (325) Ox2 Location -8/Materials Parts ------- > --- POWER (1) -------- Reinforced Ion Engine > --- PROPULSION (2) --- Armored Treads Medium Treads > --- UTILITY (5) ------ Improved Heat Sink Huge Storage Unit Machine Analyzer Advanced Targeting Computer Hacking Suite > --- WEAPON (3) ------- Precision Shock Rifle Precision Shock Rifle > --- INVENTORY (25) --- Cooled Ion Engine Light Nuclear Core Light Angular Momentum Engine Medium Treads Wheel Wheel Improved Heat Sink Improved Heat Sink High-capacity Matter Pod (200) Improved Terrain Scanner Microactuators Microactuators Microactuators Hardened Medium Armor Plating Improved Medium Laser Improved Medium Laser Plasma Cannon Plasma Cannon Plasma Cannon Enhanced Autogun Improved Grenade Launcher Greatsword Greatsword Peak State ------------ > --- POWER ------------ Light Nuclear Core > --- PROPULSION ------- Medium Treads Medium Treads > --- UTILITY ---------- Improved Heat Sink Huge Storage Unit Machine Analyzer Advanced Targeting Computer Hacking Suite > --- WEAPON ----------- Heavy EM Shotgun Precision Shock Rifle Enhanced Autogun > --- INVENTORY -------- Reinforced Ion Engine Cooled Ion Engine Light Nuclear Core Light Angular Momentum Engine Armored Treads Medium Treads Wheel Wheel Improved Heat Sink Improved Heat Sink Improved Heat Sink Improved Heat Sink High-capacity Matter Pod Microactuators Microactuators Microactuators Precision Shock Rifle Improved Medium Laser Improved Medium Laser Advanced Beam Cannon Improved Grenade Launcher Greatsword Greatsword [Rating: 45] Favorites ----------- Power Reinforced Ion Engine Engine Reinforced Ion Engine Power Core Light Nuclear Core Propulsion Armored Treads Treads Armored Treads Utility Improved Heat Sink Device Improved Heat Sink Storage Huge Storage Unit Processor Machine Analyzer Hackware Hacking Suite Protection Medium Armor Plating Weapon Advanced Beam Cannon Energy Gun Heavy EM Pulse Gun Energy Cannon Advanced Beam Cannon Ballistic Gun Enhanced Autogun Launcher Improved Grenade Launcher Slashing Weapon Greatsword Build | -11 -10 -10 -9 -9 -9 -8 -8 -8 -8 -8 -8 ------- Run | Jun Mat Min Mat Min Exi Min Mat Gar Mat Gar Mat Slots Evolved 4 | . . . 2 . . . 2 . . . . Power . | . . . . . . . . . . . . Propulsion . | . . . . . . . . . . . . Utility 3 | . . . 1 . . . 2 . . . . Weapon 1 | . . . 1 . . . . . . . . Parts Attached 100 | 6 5 1 13 4 2 5 22 14 12 5 11 Power 9 | 1 . 1 4 . . . . 1 1 . 1 Engine 7 | 1 . 1 4 . . . . . . . 1 Core 2 | . . . . . . . . 1 1 . . Reactor . | . . . . . . . . . . . . Propulsion 19 | 2 . . 4 . . 1 4 1 3 . 4 Treads 19 | 2 . . 4 . . 1 4 1 3 . 4 Leg . | . . . . . . . . . . . . Wheel . | . . . . . . . . . . . . Hover . | . . . . . . . . . . . . Flight . | . . . . . . . . . . . . Utility 30 | 1 2 . 3 1 2 4 10 4 2 1 . Device 14 | . 1 . 2 1 . 3 4 2 . 1 . Storage 5 | 1 1 . . . 2 . 1 . . . . Processor 2 | . . . . . . . . . 2 . . Hackware 1 | . . . . . . . . 1 . . . Protection 8 | . . . 1 . . 1 5 1 . . . Artifact . | . . . . . . . . . . . . Weapon 42 | 2 3 . 2 3 . . 8 8 6 4 6 Energy Gun 15 | 2 3 . 1 . . . 2 . 1 2 4 Energy Cannon 11 | . . . 1 3 . . 1 4 2 . . Ballistic Gun 7 | . . . . . . . 2 3 1 1 . Ballistic Cannon . | . . . . . . . . . . . . Launcher 8 | . . . . . . . 2 1 2 1 2 Special Weapon . | . . . . . . . . . . . . Impact Weapon . | . . . . . . . . . . . . Slashing Weapon 1 | . . . . . . . 1 . . . . Piercing Weapon . | . . . . . . . . . . . . Special Melee Weapon . | . . . . . . . . . . . . Unidentified Prototypes 5 | . . . 2 . . . 1 . 1 . 1 Parts Lost 29 | . 2 1 2 2 . 2 9 5 1 2 3 Power 3 | . . 1 . . . . . 1 . . 1 Propulsion 6 | . . . 1 . . 1 2 1 . . 1 Utility 8 | . . . . . . 1 4 2 1 . . Weapon 12 | . 2 . 1 2 . . 3 1 . 2 1 Highest Loss Streak 7 | . 1 1 1 1 . 1 7 2 1 1 1 To Critical Strikes . | . . . . . . . . . . . . Average Slot Usage (%) 95 | . 94 99 92 99 100 99 88 95 95 96 99 Engine 7 | . 14 13 10 11 11 11 9 7 . . 6 Core 2 | . . . . . . . . 1 9 9 2 Treads 20 | . 28 28 20 22 22 22 17 17 18 18 17 Device 14 | . 2 14 17 15 22 19 18 19 10 9 9 Storage 10 | . 21 14 11 11 11 11 9 9 9 9 9 Processor 4 | . . . . . . . . . 12 18 18 Hackware 3 | . . . . . . . . 8 9 9 9 Protection 4 | . . . 1 6 . 2 13 6 . . . Energy Gun 8 | . 27 28 24 12 . . 7 . . 3 20 Energy Cannon 10 | . . . 5 19 33 33 4 6 8 6 . Ballistic Gun 5 | . . . . . . . 1 13 17 12 4 Naked Turns . | . . . . . . . . . . . . Heaviest Build 115 | 14 35 37 48 50 64 71 114 115 100 99 104 Greatest Support 56 | 40 40 40 40 40 40 40 40 40 56 56 56 Greatest Overweight (x) 3 | . . . 1 1 1 1 3 2 2 1 2 Average Overweight (x) 1 | . . . . 1 1 1 1 2 1 1 1 Largest Inventory Capacity 25 | 8 15 15 15 15 20 20 25 25 25 25 25 Average Capacity 20 | 7 14 15 15 15 15 20 20 25 25 25 25 Most Carried 25 | 1 14 13 15 15 15 20 20 22 25 25 25 Average Carried 18 | . 10 12 13 14 13 19 17 18 23 24 24 Final Capacity 25 | 8 15 15 15 15 20 20 25 25 25 25 25 Final Carried 25 | 1 13 12 15 13 15 19 20 18 25 23 25 Class Distribution -------------------- 33% | Gunner 27% | Mutant 18% | Tank 8% | Gladiator 5% | Scavenger-Skirmisher 4% | Scavenger-Gunner Dominant Class ---------------- Mutant | -10/Materials Mutant | -10/Mines Gunner | -9/Materials Tank | -9/Mines Gunner | -9/Exiles Gunner | -8/Mines Tank | -8/Materials Mutant | -8/Garrison Scavenger-Skirmisher | -8/Materials Mutant | -8/Garrison Gunner | -8/Materials Resources | -11 -10 -10 -9 -9 -9 -8 -8 -8 -8 -8 -8 ----------- Run | Jun Mat Min Mat Min Exi Min Mat Gar Mat Gar Mat Matter Collected 2112 | 240 65 10 125 40 . 65 217 396 416 329 209 Remotely . | . . . . . . . . . . . . Salvage Created 6445 | . 584 75 912 268 . 483 777 670 1030 642 1004 Parts 355 | . 41 5 44 21 . 21 40 40 70 30 43 Haulers Intercepted 6 | . . . 3 . . . 1 . 2 . . Recyclers Shooed 1 | . . . . . . . . . 1 . . Parts Field Recycled . | . . . . . . . . . . . . Retrieved Matter . | . . . . . . . . . . . . Parts Self-Destructed . | . . . . . . . . . . . . Prevented . | . . . . . . . . . . . . Kills | -11 -10 -10 -9 -9 -9 -8 -8 -8 -8 -8 -8 ------- Run | Jun Mat Min Mat Min Exi Min Mat Gar Mat Gar Mat Combat Hostiles Destroyed 138 | . 10 2 15 14 . 9 16 16 19 18 19 Melee 2 | . . . . . . . 2 . . . . Guns 65 | . 8 2 8 5 . . 2 11 9 8 12 Cannons 39 | . . . 4 8 . 8 7 3 6 3 . AOE 24 | . 2 . 2 . . . 3 2 3 7 5 Classes Destroyed 13 | . 4 2 4 . . . . . 3 . . Worker 8 | . . 1 . 1 . 1 1 . 3 . 1 Builder 3 | . . . . . . . . . 1 . 2 Hauler 6 | . . . 3 . . . 1 . 2 . . Recycler 2 | . 1 . . . . . . . 1 . . Mechanic 1 | . . . . . . . . . 1 . . Operator 3 | . 1 . . . . . 1 . 1 . . Watcher 5 | . 1 . 1 . . . . . 1 . 2 Swarmer 35 | . . 1 . 14 . . 3 6 6 3 2 Grunt 74 | . 10 1 8 . . 7 8 10 7 11 12 Brawler 3 | . . . 1 . . 1 . . . 1 . Duelist 5 | . . . 1 . . 1 . . . 1 2 Sentry 17 | . . . 5 . . . 5 . 5 1 1 Hunter 4 | . . . . . . . . . 1 1 2 Best Kill Streak 9 | . 5 1 4 8 . 4 6 9 6 4 7 Combat Bots Only 9 | . 5 1 4 8 . 3 6 9 5 4 4 Max Kills in Single Turn 4 | . 2 1 2 1 . 2 4 2 4 2 2 Gunslinging 1 | . . . 1 . . . . 1 . . . Exploded 3 | . 1 . 2 . . . 3 1 3 2 2 Melee 1 | . . . . . . . 1 . . . . Uniques/NPCs Destroyed . | . . . . . . . . . . . . Combat | -11 -10 -10 -9 -9 -9 -8 -8 -8 -8 -8 -8 -------- Run | Jun Mat Min Mat Min Exi Min Mat Gar Mat Gar Mat Damage Taken 6071 | . 461 88 618 347 . 535 1669 656 507 488 702 Core 842 | . 99 . 127 19 . 37 185 89 70 133 83 Absorbed by Shields . | . . . . . . . . . . . . Regen/Repaired (Parts) 102 | . . . . . . . . . . . 102 Core Remaining (%) 71 | 100 . 60 . . . 54 . . . . . Volleys Fired 330 | . 25 7 29 24 . 21 45 60 42 42 35 Largest 3 | . 2 2 3 3 . 3 3 3 3 3 3 Hottest 204 | . 90 90 146 204 . 204 204 136 118 129 160 Shots Fired 754 | . 49 14 76 63 . 63 83 116 122 81 87 Gun 454 | . 49 14 62 29 . . 24 64 80 50 82 Cannon 279 | . . . 14 34 . 63 57 50 40 21 . Launcher 21 | . . . . . . . 2 2 2 10 5 Special . | . . . . . . . . . . . . Kinetic 189 | . . . . . . . 6 64 80 28 11 Thermal 277 | . 13 . . 15 . 63 75 50 40 21 . Explosive 21 | . . . . . . . 2 2 2 10 5 Electromagnetic 267 | . 36 14 76 48 . . . . . 22 71 Robot Hit Streak 20 | . 8 9 17 5 . 11 19 20 12 14 12 Robot Miss Streak 9 | . 2 2 1 9 . 6 2 4 4 1 2 Penetration Max . | . . . . . . . . . . . . Secondary Targets 7 | . . 1 2 . . . . 2 . . 2 Max Gunslinging Chain 1 | . . 1 1 . . . . 1 . . 1 Shots Hit Robots 463 | . 36 7 52 19 . 36 76 52 75 40 70 Core Hits 253 | . 19 3 25 13 . 16 29 28 45 37 38 Critical Kills 3 | . . . . . . 1 1 . 1 . . Critical Parts Destroyed . | . . . . . . . . . . . . Critical Strikes 9 | . . . 3 1 . 1 3 . 1 . . Meltdown 3 | . . . . . . 1 1 . 1 . . Corrupt 4 | . . . 3 1 . . . . . . . Sever 2 | . . . . . . . 2 . . . . Melee Attacks 22 | . . . . . . . 17 5 . . . Impact . | . . . . . . . . . . . . Slashing 22 | . . . . . . . 17 5 . . . Piercing . | . . . . . . . . . . . . Sneak Attacks 1 | . . . . . . . 1 . . . . Combat Hostiles . | . . . . . . . . . . . . Follow-up Attacks . | . . . . . . . . . . . . Damage Inflicted 11874 | . 660 161 1115 491 . 852 2137 1228 1721 1419 2090 Guns 5318 | . 516 119 619 162 . . 378 566 997 555 1406 Cannons 3367 | . . . 284 311 . 844 920 412 494 102 . Explosions 2498 | . 144 42 212 . . . 183 250 221 762 684 Melee 656 | . . . . . . . 656 . . . . Ramming 35 | . . . . 18 . 8 . . 9 . . Kinetic 2082 | . . . . . . . 103 566 997 274 142 Thermal 3713 | . 254 42 212 82 . 844 1195 412 494 178 . Explosive 2024 | . . . . . . . 183 250 221 686 684 Electromagnetic 3364 | . 406 119 903 391 . . . . . 281 1264 Impact . | . . . . . . . . . . . . Slashing 656 | . . . . . . . 656 . . . . Piercing . | . . . . . . . . . . . . Highest Corruption 1 | . . . . . . . . . . . 1 Average Corruption 1 | . . . . . . . . . . . 1 Corruption Purged . | . . . . . . . . . . . . Corruption Blocked . | . . . . . . . . . . . . Effects 1 | . . . . . . . . . . . 1 Matter Fused 1 | . . . . . . . . . . . 1 Overload Shots . | . . . . . . . . . . . . Overflow Damage 107 | . . . 29 1 . 11 45 15 . . 6 Projectiles 33 | . . . 10 1 . 11 11 . . . . Explosions 44 | . . . 19 . . . 4 15 . . 6 Melee 30 | . . . . . . . 30 . . . . Knockbacks . | . . . . . . . . . . . . Impact . | . . . . . . . . . . . . Kinetic . | . . . . . . . . . . . . Secondary . | . . . . . . . . . . . . Self-Inflicted Damage 275 | . 58 32 89 . . . . . . 60 36 Shots 8 | . 2 1 2 . . . . . . 2 1 Rammed 10 | . . . . 5 . 1 1 . 3 . . Targets Rammed 11 | . . . . 6 . 1 1 . 3 . . Kicked . | . . . . . . . . . . . . Crushed 1 | . . . . 1 . . . . . . . Highest Temperature 359 | . 221 24 286 342 . 359 194 261 216 117 251 Average Temperature 83 | . 98 18 43 86 . 132 89 92 78 46 67 Received Heat Transfer 2718 | . 246 12 165 . . 306 918 306 198 234 333 Effects 2 | . . . . . . 2 . . . . . Shutdowns 1 | . . . . . . 1 . . . . . Damage (minor) 1 | . . . . . . 1 . . . . . Siege Activations . | . . . . . . . . . . . . Robots Corrupted 4 | . . . 1 1 . . . . . . 2 Combat Hostiles 4 | . . . 1 1 . . . . . . 2 Parts Fried 22 | . . . 10 2 . . . . . 1 9 Impact Corruptions . | . . . . . . . . . . . . Robots Melted 4 | . . . . . . 1 2 . 1 . . Combat Hostiles 4 | . . . . . . 1 2 . 1 . . Parts Melted 9 | . . . . . . 3 4 . 2 . . Heat Transferred 6718 | . 533 50 300 148 . 1517 2257 740 888 285 . Parts Sabotaged . | . . . . . . . . . . . . Parts Stolen . | . . . . . . . . . . . . Parts Stripped . | . . . . . . . . . . . . Power Chain Reactions 8 | . 2 1 3 . . . . . . 1 1 Missiles Intercepted . | . . . . . . . . . . . . Alert | -11 -10 -10 -9 -9 -9 -8 -8 -8 -8 -8 -8 ------- Run | Jun Mat Min Mat Min Exi Min Mat Gar Mat Gar Mat Peak Influence 1079 | . 216 139 356 240 . 145 212 770 444 1079 769 Initial 525 | . . 66 10 85 . . 25 . 375 95 525 Average 235 | . 105 65 188 131 . 49 61 372 284 509 595 Maximum Alert Level 3 | . 1 . 1 1 . . 1 3 2 3 3 Low Security (%) 55 | 100 98 100 45 64 . 100 92 24 21 25 . Level 1 21 | . 1 . 54 35 . . 7 21 52 17 . Level 2 17 | . . . . . . . . 44 25 29 73 Level 3 6 | . . . . . . . . 9 . 27 26 Level 4 . | . . . . . . . . . . . . Level 5 . | . . . . . . . . . . . . High Security . | . . . . . . . . . . . . Max Security . | . . . . . . . . . . . . Squads Dispatched 12 | . 2 1 . . . . 3 . 2 . 4 Investigation 4 | . 1 1 . . . . 1 . . . 1 Extermination . | . . . . . . . . . . . . Reinforcement 7 | . 1 . . . . . 2 . 2 . 2 Assault 1 | . . . . . . . . . . . 1 Garrison . | . . . . . . . . . . . . Intercept . | . . . . . . . . . . . . Searches Triggered . | . . . . . . . . . . . . Construction Impeded 1 | . . . . . . . 1 . . . . Haulers Reinforced . | . . . . . . . . . . . . Active Scanning Responses . | . . . . . . . . . . . . Cargo Convoy Interrupts . | . . . . . . . . . . . . Stealth | -11 -10 -10 -9 -9 -9 -8 -8 -8 -8 -8 -8 --------- Run | Jun Mat Min Mat Min Exi Min Mat Gar Mat Gar Mat Distress Signals 13 | . 1 . 2 . . . 2 . 3 . 5 Communications Jammed . | . . . . . . . . . . . . Distress Signals . | . . . . . . . . . . . . Times Spotted 196 | . 19 4 20 15 . 8 29 17 32 22 30 Peak Tracking Total 8 | . 5 3 4 5 . 3 8 5 6 4 4 Tactical Retreats 7 | . 2 . . 2 . . 1 1 . 1 . Traps | -11 -10 -10 -9 -9 -9 -8 -8 -8 -8 -8 -8 ------- Run | Jun Mat Min Mat Min Exi Min Mat Gar Mat Gar Mat Traps Triggered 10 | . 1 . . . . . 1 6 . 1 1 Indirectly . | . . . . . . . . . . . . Trap Hack Attempts . | . . . . . . . . . . . . Triggered . | . . . . . . . . . . . . Disarmed . | . . . . . . . . . . . . Reprogrammed . | . . . . . . . . . . . . Reused . | . . . . . . . . . . . . Traps Extracted . | . . . . . . . . . . . . Installed . | . . . . . . . . . . . . Triggered . | . . . . . . . . . . . . Machines | -11 -10 -10 -9 -9 -9 -8 -8 -8 -8 -8 -8 ---------- Run | Jun Mat Min Mat Min Exi Min Mat Gar Mat Gar Mat Machines Disabled 27 | . 1 . 5 . . 1 2 9 1 7 1 Max in Single Turn 3 | . 1 . 3 . . 1 2 1 1 2 1 Garrison Relay 9 | . . . . . . . . 5 . 4 . Phase Generator 1 | . . . . . . . . . . 1 . Machines Repaired . | . . . . . . . . . . . . Machines Sabotaged . | . . . . . . . . . . . . Overloaded Fab Kills . | . . . . . . . . . . . . Hacking | -11 -10 -10 -9 -9 -9 -8 -8 -8 -8 -8 -8 --------- Run | Jun Mat Min Mat Min Exi Min Mat Gar Mat Gar Mat Machines Accessed 33 | . 3 1 4 . 1 . 7 2 8 3 4 Terminals 25 | . 2 . 4 . . . 4 2 7 3 3 Fabricators . | . . . . . . . . . . . . Repair Stations 2 | . 1 . . . . . . . . . 1 Recycling Units . | . . . . . . . . . . . . Scanalyzers 2 | . . . . . . . 2 . . . . Garrison Access 2 | . . . . . . . 1 . 1 . . Total Hacks 85 | . 12 1 8 . 1 . 21 4 22 5 11 Successful 42 | . 6 1 4 . 1 . 13 2 7 2 6 Failed 43 | . 6 . 4 . . . 8 2 15 3 5 Catastrophic 9 | . 1 . 2 . . . 1 1 3 . 1 Database Lockouts . | . . . . . . . . . . . . Manual 53 | . 7 . 8 . . . 10 3 15 1 9 Terminals 65 | . 9 . 8 . . . 9 4 21 5 9 Fabricators . | . . . . . . . . . . . . Repair Stations 5 | . 3 . . . . . . . . . 2 Recycling Units . | . . . . . . . . . . . . Scanalyzers 8 | . . . . . . . 8 . . . . Garrison Access 5 | . . . . . . . 4 . 1 . . Terminal Hacks 19 | . 3 1 3 . 1 . 2 1 4 2 2 Record 2 | . 1 . . . 1 . . . . . . Part Schematic 1 | . . . 1 . . . . . . . . Prototype ID Bank 3 | . 2 . 1 . . . . . . . . Open Door 2 | . . 1 . . . . . . . 1 . Branch Access Points 1 | . . . 1 . . . . . . . . Alert Level 1 | . . . . . . . . . 1 . . Unreport Threat 6 | . . . . . . . 1 . 3 . 2 Locate Traps 1 | . . . . . . . 1 . . . . Garrison Registry 2 | . . . . . . . . 1 . 1 . Fabricator Hacks . | . . . . . . . . . . . . Repair Station Hacks 3 | . 1 . . . . . . . . . 2 Scan Component 2 | . 1 . . . . . . . . . 1 Repair 1 | . . . . . . . . . . . 1 Recycling Unit Hacks . | . . . . . . . . . . . . Scanalyzer 6 | . . . . . . . 6 . . . . Insert Component 4 | . . . . . . . 4 . . . . Analyze 2 | . . . . . . . 2 . . . . Garrison Access Hacks 2 | . . . . . . . 1 . 1 . . Unlock Access 2 | . . . . . . . 1 . 1 . . Unauthorized Hacks 12 | . 2 . 1 . . . 4 1 2 . 2 Terminals 11 | . 2 . 1 . . . 3 1 2 . 2 Assimilate 1 | . 1 . . . . . . . . . . Botnet 8 | . . . 1 . . . 2 1 2 . 2 Disrupt 1 | . . . . . . . 1 . . . . Operators 1 | . 1 . . . . . . . . . . Fabricators . | . . . . . . . . . . . . Repair Stations . | . . . . . . . . . . . . Recycling Units . | . . . . . . . . . . . . Scanalyzers . | . . . . . . . . . . . . Garrison Access 1 | . . . . . . . 1 . . . . Reprogram 1 | . . . . . . . 1 . . . . Data Cores Recovered . | . . . . . . . . . . . . Used . | . . . . . . . . . . . . Hacking Detections 27 | . 3 . 4 . . . 7 1 7 2 3 Full Trace Events 2 | . . . . . . . . . . 1 1 Feedback Events . | . . . . . . . . . . . . Feedback Blocked . | . . . . . . . . . . . . Robot Schematics Acquired . | . . . . . . . . . . . . Robots Built . | . . . . . . . . . . . . Authchips . | . . . . . . . . . . . . Time . | . . . . . . . . . . . . Total Robot Build Rating . | . . . . . . . . . . . . Part Schematics Acquired 3 | . . . 1 . . . 2 . . . . Parts Built . | . . . . . . . . . . . . Authchips . | . . . . . . . . . . . . Time . | . . . . . . . . . . . . Total Part Build Rating . | . . . . . . . . . . . . Parts Repaired 1 | . . . . . . . . . . . 1 Time 44 | . . . . . . . . . . . 44 Parts Recycled . | . . . . . . . . . . . . Recycled Matter . | . . . . . . . . . . . . Retrieved Matter . | . . . . . . . . . . . . Retrieved Components . | . . . . . . . . . . . . Parts Scanalyzed 2 | . . . . . . . 2 . . . . Part Schematics Acquired 2 | . . . . . . . 2 . . . . Parts Damaged . | . . . . . . . . . . . . Bothacking | -11 -10 -10 -9 -9 -9 -8 -8 -8 -8 -8 -8 ------------ Run | Jun Mat Min Mat Min Exi Min Mat Gar Mat Gar Mat Used RIF Installer . | . . . . . . . . . . . . Robots Hacked . | . . . . . . . . . . . . Non-combat . | . . . . . . . . . . . . Combat . | . . . . . . . . . . . . Robot Hacks Applied . | . . . . . . . . . . . . Relay Couplers Released 38 | . . . . . . . . 20 . 18 . Machine Destruction 38 | . . . . . . . . 20 . 18 . Fabnet Peak Effective % . | . . . . . . . . . . . . Robots Rewired 2 | . . . . . . . . . . 2 . Allies Hacked . | . . . . . . . . . . . . Hacks Repelled . | . . . . . . . . . . . . Allies | -11 -10 -10 -9 -9 -9 -8 -8 -8 -8 -8 -8 -------- Run | Jun Mat Min Mat Min Exi Min Mat Gar Mat Gar Mat Total Allies 8 | . 1 2 . . . . 3 . . 2 . Largest Group 3 | . 1 2 1 . . . 3 3 . 2 . Highest-Rated Group 70 | . 10 45 14 . . . 48 48 . 70 . Highest-Rated Ally 39 | . 10 31 14 . . . 16 16 . 39 . Total Orders . | . . . . . . . . . . . . Ally Attacks 47 | . . 10 . . . . . 19 . 18 . Total Damage 676 | . . 104 . . . . . 250 . 322 . Kills 12 | . . 4 . . . . . 2 . 6 . Allies Corrupted . | . . . . . . . . . . . . Allies Melted . | . . . . . . . . . . . . Intel | -11 -10 -10 -9 -9 -9 -8 -8 -8 -8 -8 -8 ------- Run | Jun Mat Min Mat Min Exi Min Mat Gar Mat Gar Mat Robot Analysis Total . | . . . . . . . . . . . . Derelict Logs Recovered 3 | . . . . 3 . . . . . . . Drone Launches . | . . . . . . . . . . . . Drone Recoveries . | . . . . . . . . . . . . Exploration | -11 -10 -10 -9 -9 -9 -8 -8 -8 -8 -8 -8 ------------- Run | Jun Mat Min Mat Min Exi Min Mat Gar Mat Gar Mat Turns Passed 12733 | 88 713 521 886 1523 427 1191 2012 1500 1595 1479 798 Spaces Moved 4316 | 53 310 308 372 553 170 441 477 402 455 546 229 Core 7 | 7 . . . . . . . . . . . Treads 4309 | 46 310 308 372 553 170 441 477 402 455 546 229 Legs . | . . . . . . . . . . . . Wheels . | . . . . . . . . . . . . Hover . | . . . . . . . . . . . . Flight . | . . . . . . . . . . . . Fastest Speed 50 | 50 160 160 160 250 250 250 250 325 240 240 240 Average Speed 245 | 145 160 160 194 250 250 250 269 328 303 240 269 Slowest Speed 410 | 160 160 160 250 250 250 250 410 330 325 240 325 Overloaded Moves . | . . . . . . . . . . . . Propulsion Burnouts . | . . . . . . . . . . . . Robots Hopped . | . . . . . . . . . . . . Cave-ins Triggered . | . . . . . . . . . . . . Exploration Rate (%) 53 | 3 37 69 39 97 54 86 45 70 47 62 30 Regions Visited 11 Branch Regions 4 Pre-discovered Areas 2 | . . . . 1 1 . . . . . . Known Exits Taken 3 | . . . 1 . . . 1 . 1 . . Unknown Exits Taken 6 | 1 1 1 . 1 1 1 . . . . . Scrap Searched 3 | . . . . 2 . 1 . . . . . Spaces Dug 2 | . . . . . . . 2 . . . . Terrain Destroyed 257 | . 6 7 5 . . . 14 4 15 145 61 Melee 2 | . . . . . . . 2 . . . . Projectile . | . . . . . . . . . . . . AOE 255 | . 6 7 5 . . . 12 4 15 145 61 Terrain Rammed . | . . . . . . . . . . . . Walls Destroyed . | . . . . . . . . . . . . Machines Disabled . | . . . . . . . . . . . . Actions | -11 -10 -10 -9 -9 -9 -8 -8 -8 -8 -8 -8 --------- Run | Jun Mat Min Mat Min Exi Min Mat Gar Mat Gar Mat Total 5860 | 61 478 322 479 635 173 481 1125 500 603 660 343 Wait 943 | 2 122 7 38 47 . 8 538 5 77 42 57 Move 4306 | 52 309 307 371 552 169 440 476 401 455 545 229 Hop . | . . . . . . . . . . . . Pick Up 69 | 1 15 . 14 1 1 6 14 2 7 1 7 Fast Attach 26 | 6 2 . 5 . . . 8 1 3 . 1 Attach 32 | . 2 1 3 3 . 3 9 6 . 2 3 Detach 4 | . . . . . . . 1 1 2 . . Swap 42 | . 1 . 5 1 2 2 5 7 9 3 7 Drop 40 | . 2 . 14 1 1 . 11 . 5 2 4 Fire 330 | . 25 7 29 24 . 21 45 60 42 42 35 Melee 22 | . . . . . . . 17 5 . . . Ram . | . . . . . . . . . . . . Kick . | . . . . . . . . . . . . Crush 11 | . . . . 6 . 1 1 . 3 . . Escape Stasis 14 | . . . . . . . . 12 . 2 . Rewire 21 | . . . . . . . . . . 21 . Trap . | . . . . . . . . . . . . Miscellaneous . | . . . . . . . . . . . . Route ------- -11/Junkyard -10/Materials -10/Mines -9/Materials (discovered 2 exits: *Mat / *Min) -9/Mines (discovered 3 exits: *Mat x2 / *Exi) -9/Exiles (discovered 2 exits: [*Min x2]) -8/Mines (discovered 2 exits: *Mat x2) -8/Materials (discovered 3 exits: Fac / [*Sto] / Gar) -8/Garrison (discovered 3 exits: *Mat x3) -8/Materials (discovered 3 exits: *Fac / [*Sto] / Gar) -8/Garrison (discovered 3 exits: *Mat x3) -8/Materials History --------- Turn | Location | Event 8 | -11/Junkyard | Discovered new exit (range 16) 89 | -11/Junkyard | Entered Materials 302 | -10/Materials | Discovered new exit (range 8) 308 | -10/Materials | Build established: Mutant 802 | -10/Materials | Entered Mines 811 | -10/Mines | Met a Derelict shopkeep closing up shop 1122 | -10/Mines | Assembled infested the area 1127 | -10/Mines | Assisted by a Guerilla fighting off Assembled 1270 | -10/Mines | Discovered new exit (range 8) 1323 | -10/Mines | Entered Materials 1323 | -9/Materials | Accompanied by 1 ally 1323 | -9/Materials | Evolved 2 slots: Utility x1, Weapon x1 1859 | -9/Materials | Discovered new exit (range 5) 2027 | -9/Materials | Build established: Gunner 2119 | -9/Materials | Identified exit to Mines 2209 | -9/Materials | Entered Mines 2226 | -9/Mines | Met a Derelict bent on vengeance 2309 | -9/Mines | Found a hidden stash of uninstalled traps 2343 | -9/Mines | Build established: Tank 2411 | -9/Mines | Discovered new exit (range 15) 2655 | -9/Mines | Deemed a non-threat by the Exiles lab entrance 2715 | -9/Mines | Learned location of Storage (-8) 2805 | -9/Mines | Learned Materials emergency access door positions 2960 | -9/Mines | Discovered new exit (range 5) 3105 | -9/Mines | Destroyed 8 combat bots 3439 | -9/Mines | Discovered new exit (range 6) 3479 | -9/Mines | Build established: Gunner 3732 | -9/Mines | Entered Exiles 3775 | -9/Exiles | Discovered new exit (range 15) 3805 | -9/Exiles | Met 8R-AWN 3842 | -9/Exiles | Met EX-HEX 3956 | -9/Exiles | Met EX-DEC 4001 | -9/Exiles | Learned location of Zion (-6) 4132 | -9/Exiles | Discovered new exit (range 14) 4159 | -9/Exiles | Entered Mines 4291 | -8/Mines | Discovered new exit (range 12) 4355 | -8/Mines | Discovered new exit (range 10) 5350 | -8/Mines | Entered Materials 5350 | -8/Materials | Evolved 2 slots: Utility x2 5351 | -8/Materials | Identified exit to Factory 5532 | -8/Materials | Lost 7 parts (1n3u3w) 5857 | -8/Materials | Build established: Tank 6789 | -8/Materials | Build established: Gladiator 6819 | -8/Materials | Discovered new exit (range 13) 7252 | -8/Materials | Identified exit to Garrison 7362 | -8/Materials | Entered Garrison 7362 | -8/Garrison | Accompanied by 3 allies 7412 | -8/Garrison | Discovered new exit (range 44) 7412 | -8/Garrison | Discovered new exit (range 62) 7412 | -8/Garrison | Discovered new exit (range 87) 7541 | -8/Garrison | Garrison Relay disabled 7662 | -8/Garrison | Triggered checkpoint 7785 | -8/Garrison | Destroyed 9 combat bots 8002 | -8/Garrison | Triggered checkpoint 8053 | -8/Garrison | Garrison Relay disabled 8349 | -8/Garrison | Build established: Mutant 8396 | -8/Garrison | Garrison Relay disabled 8504 | -8/Garrison | Triggered checkpoint 8634 | -8/Garrison | Triggered checkpoint 8717 | -8/Garrison | Garrison Relay disabled 8838 | -8/Garrison | Garrison Relay disabled 8862 | -8/Garrison | Entered Materials 9270 | -8/Materials | Build established: Scavenger-Skirmisher 9537 | -8/Materials | Core integrity fell below 50% 9978 | -8/Materials | Discovered new exit (range 12) 10044 | -8/Materials | Build established: Scavenger-Gunner 10313 | -8/Materials | Discovered exit to Factory (range 8) 10441 | -8/Materials | Build established: Gunner 10457 | -8/Materials | Identified exit to Garrison 10457 | -8/Materials | Entered Garrison 10647 | -8/Garrison | Phase Generator disabled 10783 | -8/Garrison | Build established: Mutant 10820 | -8/Garrison | Triggered checkpoint 10878 | -8/Garrison | Garrison Relay disabled 10896 | -8/Garrison | Triggered checkpoint 11026 | -8/Garrison | Triggered checkpoint 11030 | -8/Garrison | Triggered checkpoint 11249 | -8/Garrison | Core integrity fell below 20% 11418 | -8/Garrison | Discovered new exit (range 12) 11486 | -8/Garrison | Triggered checkpoint 11535 | -8/Garrison | Garrison Relay disabled 11553 | -8/Garrison | Discovered new exit (range 18) 11553 | -8/Garrison | Discovered new exit (range 63) 11553 | -8/Garrison | Discovered new exit (range 76) 11787 | -8/Garrison | Garrison Relay disabled 11830 | -8/Garrison | Triggered checkpoint 11871 | -8/Garrison | Garrison Relay disabled 11918 | -8/Garrison | Build established: Gunner 11936 | -8/Garrison | Entered Materials 12051 | -8/Materials | Repaired Med. Treads 12336 | -8/Materials | First assault squad dispatched 12734 | -8/Materials | Destroyed by G-47 Trooper with Particle Gun Last Messages --------------- 12576_ Penetrated by Slug. 12578_ H-55 Commando destroyed. 12600_ W-25 Informer sends out distress signal. 12614_ G-47 Trooper destroyed. 12614_ Switching to secondary target: G-47 Trooper. 12617_ G-47 Trooper destroyed. 12617_ Switching to secondary target: G-47 Trooper. 12619_ R-06 Scavenger collects Corrupted Particle Gun. 12620_ Imp. Heat Sink fried. 12620_ G-47 Trooper destroyed. 12622_ R-06 Scavenger collects Lgt. Nuclear Core. 12630_ Acquired 24 matter. 12653_ W-25 Informer sends out distress signal. 12664_ Y-45 Defender destroyed. 12687_ System corrupted: Matter fused (-5). 12693_ R-06 Scavenger collects Corrupted Lgt. Treads. 12697_ R-06 Scavenger collects Hvy. Assault Rifle. 12703_ Acquired Hrd. Medium Armor Plating. 12730_ Hvy. EM Shotgun destroyed. 12734_ Critical hit (Burn: +37). Map ----- +----------------------------------------------------+ | #????????# #????????????????????######?????????? | | ########## #???????????????????? #?????????? | | ## # #??????#####????????? ??????????? | | ########## ######## "######+### ??????????? | | % "" ??#???????? | | =! " +???????? | | *% """ """ """ #???????? | | ############^ % """ """ """ #???????? | | ## % #?# """ """ """ #???????? | | ?######?##?# ##+#????? | | ???????????# #????? | | ???????????# #????? | | ???????????# = #????? | | ???????????# ###%###"T"#####+????????? | | ???????????# ###+#######?????????????? | | ???????????# # %= #?????????????? | | ???????????# # %* #?????????????? | | ???????????# # #?????????????? | | ???????????# # #?????????????? | | ???????????# # #?????????????? | | ???????????# =/% #?????????????? | | ???????????# =#! #?????????????? | | ???????#|| # #?????????????? | | ???????#|| ##### ############?????????????? | | ?????????? ????????# # % #???????????????? | | ???????????????????# #@""" [ ##??????????????? | | ???????????????????# g """ #??????????????? | | ???????????????????# # """ ]] ##??????????????? | | ???????????????????# # ]] #???????????????? | | ???????????????????# # """ ]] #???????????????? | | ???????????????????# # """ #???????????????? | | ???????????????????# # """ [ #???????????????? | | ???????????????????# # #???????????????? | | ???????????????????# ##########???????????????? | | ???????????????????# #????????????????????????? | | ???????????????????# #????????????????????????? | | ???????????????????# #????????????????????????? | | ??????????????????? #????????????????????????? | | ??????????????????? ?????????????????????????? | | ?????????????T????? ?????????????????????????? | | ????????????????????? ?????????????????????????? | | ?????????????????????????????????????????????????? | | ?????????????????????????????????????????????????? | | ?????????????????????????????????????????????????? | | ?????????????????????????????????????????????????? | | ?????????????????????????????????????????????????? | | ?????????????????????????????????????????????????? | | ?????????????????????????????????????????????????? | | ?????????????????????????????????????????????????? | | ?????????????????????????????????????????????????? | +----------------------------------------------------+ Best States ------------- Heat Dissipation 81 Coolant Potential 50 Energy Generation 14 Energy Capacity 280 Matter Stores 300 Matter Capacity 300 Sight Range 16 Terrain Scan Density 10 Armor Coverage 600 Melee Speed Boost 40 Evasion (%) 40 Targeting Accuracy 8 Recoil Reduction 2 Offensive Hacking 10 Item Schematics ----------------- Huge Storage Unit | -9/Materials | Hacked Enh. Autogun | -8/Materials | Scanalyzed Microactuators | -8/Materials | Scanalyzed Robot Schematics ------------------ None Fabricated ------------ Nothing Alien Tech Used ----------------- None Achievements -------------- None Challenges ------------ None Game ------ Seed DamperGravitonEdition Manual? 0 Play Time 00:51:41 Cumulative 491.6 hours Start 2023.05.19 @ 20:26:07 End 2023.05.19 @ 21:13:45 Sessions 1 Manual Loads 0 Difficulty Rogue Special Mode None Game No. 528 Rogue 519 Adventurer 8 Explorer 1 Win Type - Total 9 Types 5/1/3/0/0/0/0/0/0 Lore% 82 Gallery% 91 Achievement% 71 Wizard Run 0 Options --------- ASCII 0 Keyboard 0 Movement Numpad Keybinds 1 Fullscreen 2 Font 18/Terminus Map View 76x50 Tactical HUD 1 Map Filters NONE Filters NONE Steam 1 RUN: a5071f2a-559a-4add-87be-ed6a56b4c2b7